Cogmind - Beta 13 X1 @@@ ROGUE MODE // 2023.06.24 @ 06:34:12 Player: weirdfoe Result: Destroyed by as-78159 with Assembled Maul Performance ------------- Evolutions (0) 0 Regions Visited (2) 400 Robots Destroyed (16) 80 Value Destroyed (342) 342 Prototype IDs (0) 0 Alien Tech Used (0) 0 Bonus (-200) -200 TOTAL SCORE: 622 Bonus ------- Friendly Fire -200 Cogmind --------- Core Integrity 0/250 Matter 248/300 Energy 100/100 System Corruption 5% Temperature Cool (0) Movement Rolling (105) Ox1 Location -10/Mines Parts ------- > --- POWER (1) -------- (None) > --- PROPULSION (2) --- Armored Wheel > --- UTILITY (2) ------ Large Storage Unit > --- WEAPON (2) ------- (None) > --- INVENTORY (15) --- Aluminum Leg Aluminum Leg Medium Storage Unit Medium Battery (150) Medium Matter Pod (100) Grenade Launcher Peak State ------------ > --- POWER ------------ Light Ion Engine > --- PROPULSION ------- Armored Wheel Armored Wheel > --- UTILITY ---------- Small Storage Unit Utility Shielding > --- WEAPON ----------- EM Pulse Gun Assault Rifle > --- INVENTORY -------- Light Ion Engine Light Ion Engine Aluminum Leg Aluminum Leg Armored Wheel Armored Wheel Medium Laser Light Assault Rifle [Rating: 10] Favorites ----------- Power Ion Engine Engine Ion Engine Propulsion Armored Wheel Wheel Armored Wheel Utility Utility Shielding Device Structural Scanner Storage Large Storage Unit Protection Utility Shielding Weapon Assault Rifle Energy Gun Medium Laser Ballistic Gun Assault Rifle Launcher Grenade Launcher Build | -11 -10 -10 ------- Run | Jun Mat Min Slots Evolved . | . . . Power . | . . . Propulsion . | . . . Utility . | . . . Weapon . | . . . Parts Attached 20 | 6 10 4 Power 4 | 1 2 1 Engine 4 | 1 2 1 Core . | . . . Reactor . | . . . Propulsion 6 | 2 3 1 Treads . | . . . Leg . | . . . Wheel 6 | 2 3 1 Hover . | . . . Flight . | . . . Utility 5 | 1 4 . Device 1 | . 1 . Storage 3 | 1 2 . Processor . | . . . Hackware . | . . . Protection 1 | . 1 . Artifact . | . . . Weapon 5 | 2 1 2 Energy Gun 2 | 1 1 . Energy Cannon . | . . . Ballistic Gun 2 | 1 . 1 Ballistic Cannon . | . . . Launcher 1 | . . 1 Special Weapon . | . . . Impact Weapon . | . . . Slashing Weapon . | . . . Piercing Weapon . | . . . Special Melee Weapon . | . . . Unidentified Prototypes . | . . . Parts Lost 8 | . . 8 Power 2 | . . 2 Propulsion 2 | . . 2 Utility 1 | . . 1 Weapon 3 | . . 3 Highest Loss Streak 5 | . . 5 To Critical Strikes . | . . . Average Slot Usage (%) 96 | . 99 92 Engine 13 | . 14 11 Wheel 27 | . 28 26 Storage 14 | . 14 14 Protection 12 | . 12 13 Energy Gun 12 | . 14 11 Ballistic Gun 13 | . 14 12 Naked Turns . | . . . Heaviest Build 30 | 12 30 30 Greatest Support 26 | 26 26 24 Greatest Overweight (x) 1 | . 1 1 Average Overweight (x) . | . . . Largest Inventory Capacity 15 | 8 15 15 Average Capacity 12 | 6 11 15 Most Carried 10 | 6 10 9 Average Carried 7 | 3 7 8 Final Capacity 15 | 8 15 15 Final Carried 9 | 6 9 6 Class Distribution -------------------- 100% | Mutant Dominant Class ---------------- Mutant | -10/Materials Mutant | -10/Mines Resources | -11 -10 -10 ----------- Run | Jun Mat Min Matter Collected 638 | 225 353 60 Remotely . | . . . Salvage Created 574 | . 400 174 Parts 27 | . 23 4 Haulers Intercepted 1 | . 1 . Recyclers Shooed . | . . . Parts Field Recycled . | . . . Retrieved Matter . | . . . Parts Self-Destructed . | . . . Prevented . | . . . Kills | -11 -10 -10 ------- Run | Jun Mat Min Combat Hostiles Destroyed 28 | . 11 17 Melee 1 | . . 1 Guns 14 | . 11 3 AOE 13 | . . 13 Classes Destroyed 6 | . 4 2 Hauler 1 | . 1 . Watcher 1 | . 1 . Swarmer 6 | . 6 . Grunt 7 | . 5 2 Assembled 15 | . . 15 Guerrilla 1 | . . 1 Best Kill Streak 13 | . 3 13 Combat Bots Only 13 | . 3 13 Max Kills in Single Turn 4 | . 1 4 Gunslinging . | . . . Exploded 4 | . . 4 Melee 1 | . . 1 Uniques/NPCs Destroyed . | . . . Combat | -11 -10 -10 -------- Run | Jun Mat Min Damage Taken 1191 | . 430 761 Core 269 | . 71 198 Absorbed by Shields . | . . . Redirected to Shielding 23 | . 7 16 Core Remaining (%) 100 | 100 . . Volleys Fired 74 | . 42 32 Largest 2 | . 2 1 Hottest 70 | . 70 30 Shots Fired 116 | . 84 32 Gun 108 | . 84 24 Cannon . | . . . Launcher 8 | . . 8 Special . | . . . Kinetic 66 | . 42 24 Thermal 30 | . 30 . Explosive 8 | . . 8 Electromagnetic 12 | . 12 . Robot Hit Streak 7 | . 6 7 Robot Miss Streak 3 | . 3 2 Penetration Max . | . . . Secondary Targets 1 | . 1 . Max Gunslinging Chain 1 | . 1 . Shots Hit Robots 77 | . 54 23 Core Hits 57 | . 20 37 Critical Kills . | . . . Critical Parts Destroyed . | . . . Critical Strikes 4 | . 4 . Burn 4 | . 4 . Melee Attacks . | . . . Impact . | . . . Slashing . | . . . Piercing . | . . . Sneak Attacks . | . . . Combat Hostiles . | . . . Follow-up Attacks . | . . . Damage Inflicted 1890 | . 688 1202 Guns 842 | . 676 166 Cannons . | . . . Explosions 1002 | . . 1002 Melee . | . . . Ramming 46 | . 12 34 Kinetic 503 | . 337 166 Thermal 289 | . 289 . Explosive 1002 | . . 1002 Electromagnetic 50 | . 50 . Impact . | . . . Slashing . | . . . Piercing . | . . . Highest Corruption 5 | . . 5 Average Corruption 4 | . . 4 Corruption Purged . | . . . Corruption Blocked . | . . . Overload Shots . | . . . Overflow Damage 92 | . . 92 Projectiles . | . . . Explosions 92 | . . 92 Melee . | . . . Knockbacks . | . . . Impact . | . . . Kinetic . | . . . Secondary . | . . . Self-Inflicted Damage 57 | . 5 52 Shots 3 | . . 3 Rammed 7 | . 3 4 Targets Rammed 7 | . 3 4 Kicked . | . . . Crushed . | . . . Highest Temperature 99 | . 99 10 Average Temperature 33 | . 34 10 Received Heat Transfer 344 | . 183 161 Siege Activations . | . . . Robots Corrupted . | . . . Combat Hostiles . | . . . Parts Fried . | . . . Impact Corruptions . | . . . Robots Melted . | . . . Combat Hostiles . | . . . Parts Melted 6 | . 6 . Heat Transferred 1147 | . 1147 . Parts Sabotaged . | . . . Parts Stolen . | . . . Parts Stripped . | . . . Power Chain Reactions . | . . . Missiles Intercepted . | . . . Alert | -11 -10 -10 ------- Run | Jun Mat Min Peak Influence 309 | . 309 126 Initial 76 | . . 76 Average 111 | . 135 88 Maximum Alert Level 1 | . 1 . Low Security (%) 88 | 100 80 100 Level 1 11 | . 19 . Level 2 . | . . . Level 3 . | . . . Level 4 . | . . . Level 5 . | . . . High Security . | . . . Max Security . | . . . Squads Dispatched 3 | . 3 . Investigation 1 | . 1 . Extermination . | . . . Reinforcement 2 | . 2 . Assault . | . . . Garrison . | . . . Intercept . | . . . Searches Triggered . | . . . Construction Impeded . | . . . Haulers Reinforced . | . . . Active Scanning Responses . | . . . Cargo Convoy Interrupts . | . . . Stealth | -11 -10 -10 --------- Run | Jun Mat Min Distress Signals 3 | . 3 . Communications Jammed . | . . . Distress Signals . | . . . Times Spotted 45 | . 22 23 Peak Tracking Total 11 | . 3 11 Tactical Retreats 5 | . 4 1 Traps | -11 -10 -10 ------- Run | Jun Mat Min Traps Triggered 2 | . 2 . Indirectly . | . . . Trap Hack Attempts . | . . . Triggered . | . . . Disarmed . | . . . Reprogrammed . | . . . Reused . | . . . Traps Extracted . | . . . Installed . | . . . Triggered . | . . . Machines | -11 -10 -10 ---------- Run | Jun Mat Min Machines Disabled . | . . . Max in Single Turn . | . . . Machines Repaired . | . . . Machines Sabotaged . | . . . Overloaded Fab Kills . | . . . Hacking | -11 -10 -10 --------- Run | Jun Mat Min Machines Accessed . | . . . Terminals . | . . . Fabricators . | . . . Repair Stations . | . . . Recycling Units . | . . . Scanalyzers . | . . . Garrison Access . | . . . Total Hacks . | . . . Successful . | . . . Failed . | . . . Catastrophic . | . . . Database Lockouts . | . . . Manual . | . . . Terminals . | . . . Fabricators . | . . . Repair Stations . | . . . Recycling Units . | . . . Scanalyzers . | . . . Garrison Access . | . . . Terminal Hacks . | . . . Fabricator Hacks . | . . . Repair Station Hacks . | . . . Recycling Unit Hacks . | . . . Scanalyzer . | . . . Garrison Access Hacks . | . . . Unauthorized Hacks . | . . . Terminals . | . . . Fabricators . | . . . Repair Stations . | . . . Recycling Units . | . . . Scanalyzers . | . . . Garrison Access . | . . . Data Cores Recovered . | . . . Used . | . . . Hacking Detections . | . . . Full Trace Events . | . . . Feedback Events . | . . . Feedback Blocked . | . . . Robot Schematics Acquired . | . . . Robots Built . | . . . Authchips . | . . . Time . | . . . Total Robot Build Rating . | . . . Part Schematics Acquired . | . . . Parts Built . | . . . Authchips . | . . . Time . | . . . Total Part Build Rating . | . . . Parts Repaired . | . . . Time . | . . . Parts Recycled . | . . . Recycled Matter . | . . . Retrieved Matter . | . . . Retrieved Components . | . . . Parts Scanalyzed . | . . . Part Schematics Acquired . | . . . Parts Damaged . | . . . Bothacking | -11 -10 -10 ------------ Run | Jun Mat Min Used RIF Installer . | . . . Robots Hacked . | . . . Non-combat . | . . . Combat . | . . . Robot Hacks Applied . | . . . Relay Couplers Released . | . . . Fabnet Peak Effective % . | . . . Robots Rewired . | . . . Allies Hacked . | . . . Hacks Repelled . | . . . Allies | -11 -10 -10 -------- Run | Jun Mat Min Total Allies . | . . . Largest Group . | . . . Highest-Rated Group . | . . . Highest-Rated Ally . | . . . Total Orders . | . . . Ally Attacks . | . . . Total Damage . | . . . Kills . | . . . Allies Corrupted . | . . . Allies Melted . | . . . Intel | -11 -10 -10 ------- Run | Jun Mat Min Robot Analysis Total . | . . . Derelict Logs Recovered 2 | . . 2 Drone Launches . | . . . Drone Recoveries . | . . . Exploration | -11 -10 -10 ------------- Run | Jun Mat Min Turns Passed 1092 | 51 642 399 Spaces Moved 817 | 39 471 307 Core 1 | 1 . . Treads . | . . . Legs . | . . . Wheels 816 | 38 471 307 Hover . | . . . Flight . | . . . Fastest Speed 50 | 50 90 90 Average Speed 98 | 89 96 103 Slowest Speed 105 | 100 105 105 Overloaded Moves . | . . . Propulsion Burnouts . | . . . Robots Hopped . | . . . Cave-ins Triggered . | . . . Exploration Rate (%) 49 | 2 86 61 Regions Visited 2 Branch Regions 1 Pre-discovered Areas 1 | . . 1 Known Exits Taken . | . . . Unknown Exits Taken 2 | 1 1 . Scrap Searched 1 | . . 1 Spaces Dug . | . . . Terrain Destroyed 26 | . . 26 Melee . | . . . Projectile . | . . . AOE 26 | . . 26 Terrain Rammed . | . . . Walls Destroyed . | . . . Machines Disabled . | . . . Actions | -11 -10 -10 --------- Run | Jun Mat Min Total 984 | 51 575 358 Wait 44 | 1 32 11 Move 815 | 38 470 307 Hop . | . . . Pick Up 13 | 6 7 . Fast Attach 10 | 6 4 . Attach 4 | . 1 3 Detach . | . . . Swap 6 | . 5 1 Drop 11 | . 11 . Fire 74 | . 42 32 Melee . | . . . Ram 7 | . 3 4 Kick . | . . . Crush . | . . . Escape Stasis . | . . . Rewire . | . . . Trap . | . . . Miscellaneous . | . . . Route ------- -11/Junkyard -10/Materials (discovered 4 exits: [*Mat x3] / [*Min]) -10/Mines (discovered 1 exit: [*Mat]) History --------- Turn | Location | Event 23 | -11/Junkyard | Discovered new exit (range 15) 52 | -11/Junkyard | Entered Materials 231 | -10/Materials | Discovered new exit (range 10) 301 | -10/Materials | Build established: Mutant 441 | -10/Materials | Discovered new exit (range 16) 530 | -10/Materials | Discovered new exit (range 5) 684 | -10/Materials | Discovered new exit (range 10) 694 | -10/Materials | Entered Mines 695 | -10/Mines | Met a Derelict bent on vengeance 714 | -10/Mines | Discovered new exit (range 12) 879 | -10/Mines | Learned location of Recycling (-9) 969 | -10/Mines | Learned location of 1 exit from Materials 983 | -10/Mines | Assembled infested the area 988 | -10/Mines | Assisted by a Guerilla fighting off Assembled 1033 | -10/Mines | Destroyed 13 combat bots 1050 | -10/Mines | Core integrity fell below 50% 1073 | -10/Mines | Lost 5 parts (2p1n2w) 1076 | -10/Mines | Core integrity fell below 20% 1093 | -10/Mines | Destroyed by as-78159 with Assembled Maul Last Messages --------------- 01012_ Destroyed Asb. Heavy Rifle. 01012_ as-00142 destroyed. 01019_ Med. Laser destroyed. 01034_ Arm. Wheel destroyed. 01042_ Lgt. Ion Engine destroyed. 01047_ as-91333 destroyed. 01050_ Acquired 12 matter. 01054_ Acquired 4 matter. 01062_ Slammed into as-02361. 01064_ Destabilizing: Core damaged (-2). 01075_ Slammed into as-02361. 01075_ as-02361 destroyed. 01075_ Lgt. Assault Rifle destroyed. 01075_ System corrupted by crushing effect (+3). 01076_ Acquired 20 matter. 01076_ Arm. Wheel destroyed. 01076_ System corrupted by crushing effect (+1). 01079_ Utility Shielding destroyed. 01079_ System corrupted by crushing effect (+1). 01079_ Knocked back. Map ----- +----------------------------------------------------+ | | | | | | | | | | | | | | | | | | | | | | | | | | | | | | | ?????????????????????????????????????? | | ???????????????????????????????####??? | | ??????????????????????########## ##?? | | ??????????????????????# " #?? | | ??????????????????????# ####### #?? | | ??????????????????????# #?????# #?? | | ??????????????????????# #?????## ##?? | | ??????????????????????# #?????## #??? | | ??????????????????????# #???### #??? | | ?????????????????????## #####a #??? | | ?????????????????????# @aa ##??? | | ?????????????????????# ##### ##???? | | ?????????????????????# ##### ##????? | | ?????????????????????# # #?####?????? | | ???????????????????### #??????????? | | ??????????????????## ##?????????? | | ????????????????### ####??????? | | ???????????????## # ##?????? | | ???????????????# ##????? | | ???????????????## #????? | | ????????????????## ####??? | | ?????????????????## % # ##?? | | ?????????????????# # #?? | | ?????????????????# ## #?? | | ?????????????????## #### #?? | | ??????????????????# #??## #?? | | ???????????????#### #???###### #?? | | ???????????????# #????????### ##?? | | ???????????????# ####??????????####??? | | ???????????????# #???????????????????? | | ???????????##### #???????????????????? | | #??????????#[== #???????????????????? | | ?????????#%#####???????????????????? | | # ????????#=#???????????????????????? | | # #####???#%#???????????????????????? | +----------------------------------------------------+ Best States ------------- Heat Dissipation 25 Energy Generation 10 Energy Capacity 250 Matter Stores 300 Matter Capacity 300 Sight Range 16 Terrain Scan Density 10 Utility Shielding 33 Evasion (%) 42 Item Schematics ----------------- None Robot Schematics ------------------ None Fabricated ------------ Nothing Alien Tech Used ----------------- None Achievements -------------- None Challenges ------------ None Game ------ Seed LightChargeCanceller Manual? 0 Play Time 00:18:30 Cumulative 44.0 hours Start 2023.06.24 @ 06:00:45 End 2023.06.24 @ 06:34:12 Sessions 1 Manual Loads 0 Difficulty Rogue Special Mode None Game No. 119 Rogue 119 Adventurer 0 Explorer 0 Win Type - Total 0 Types 0/0/0/0/0/0/0/0/0 Lore% 30 Gallery% 40 Achievement% 27 Wizard Run 0 Options --------- ASCII 0 Keyboard 0 Movement Numpad Keybinds 0 Fullscreen 1 Font 24/Terminus Map View 76x50 Tactical HUD 1 Map Filters NONE Filters NONE Steam 1 RUN: 7cb4ea29-1ab1-484a-8fc8-ff8f64d8d80b